Cogmind - Beta 11.1 @@@ ROGUE MODE // 2022.05.16 @ 16:33:05 Player: Jamuson Result: Destroyed by H-61 Shepherd with Heavy Assault Cannon Performance ------------- Evolutions (2) 1000 Regions Visited (7) 1400 Robots Destroyed (106) 530 Value Destroyed (2942) 2942 Prototype IDs (29) 580 Alien Tech Used (0) 0 Bonus (334) 334 TOTAL SCORE: 6786 Bonus ------- High Alert Combat Kills 253 Follower Combat Kills 97 Aligned with FarCom 300 Friendly Fire -316 Cogmind --------- Core Integrity 0/550 Matter 163/300 Energy 119/140 System Corruption 2% Temperature Danger (441) Movement Walking (120) Location -8/Materials Parts ------- > --- POWER (1) -------- Light Deuterium Engine > --- PROPULSION (3) --- Improved Carbon-fiber Leg Improved Carbon-fiber Leg > --- UTILITY (4) ------ Medium Storage Unit Improved Medium Armor Plating > --- WEAPON (3) ------- Advanced Beam Rifle Enhanced Autogun Gauss Rifle > --- INVENTORY (10) --- Aerolev Unit Aerolev Unit Aerolev Unit Combat Airjet Advanced Weight Redist. System Trap Scanner Light Armor Plating Improved EM Shotgun Pulse Rifle Advanced Beam Rifle Peak State ------------ > --- POWER ------------ Light Deuterium Engine > --- PROPULSION ------- Improved Carbon-fiber Leg Improved Carbon-fiber Leg Improved Carbon-fiber Leg > --- UTILITY ---------- Improved Heat Sink Medium Storage Unit Improved Medium Armor Plating Trap Reconfigurator > --- WEAPON ----------- Advanced Beam Rifle Advanced Beam Rifle Enhanced Autogun > --- INVENTORY -------- Aerolev Unit Aerolev Unit Aerolev Unit Combat Airjet Advanced Weight Redist. System Trap Scanner Light Armor Plating Improved EM Shotgun Pulse Rifle Advanced Beam Rifle [Rating: 47] Favorites ----------- Power Light Deuterium Engine Engine Light Deuterium Engine Propulsion Compact Wheel Leg Improved Carbon-fiber Leg Wheel Compact Wheel Hover Unit Aerolev Unit Utility Light Armor Plating Device Improved Heat Sink Storage Large Storage Unit Protection Light Armor Plating Weapon Advanced Beam Rifle Energy Gun Advanced Beam Rifle Ballistic Gun Light Assault Rifle Launcher Grenade Launcher Build | -11 -10 -10 -9 -9 -9 -8 -8 ------- Run | Scr Mat Min Mat Min Exi Min Mat Slots Evolved 4 | . . . 2 . . . 2 Power . | . . . . . . . . Propulsion 1 | . . . 1 . . . . Utility 2 | . . . 1 . . . 1 Weapon 1 | . . . . . . . 1 Parts Attached 93 | 6 4 4 16 . 1 10 52 Power 9 | 1 1 1 2 . . . 4 Engine 9 | 1 1 1 2 . . . 4 Core . | . . . . . . . . Reactor . | . . . . . . . . Propulsion 22 | 2 1 1 4 . . 2 12 Treads . | . . . . . . . . Leg 8 | . . . . . . . 8 Wheel 10 | 2 1 1 4 . . 2 . Hover 4 | . . . . . . . 4 Flight . | . . . . . . . . Utility 29 | 1 . . 5 . 1 2 20 Device 10 | . . . . . 1 . 9 Storage 5 | 1 . . 1 . . . 3 Processor . | . . . . . . . . Hackware . | . . . . . . . . Protection 14 | . . . 4 . . 2 8 Artifact . | . . . . . . . . Weapon 33 | 2 2 2 5 . . 6 16 Energy Gun 21 | . . 1 5 . . 3 12 Energy Cannon . | . . . . . . . . Ballistic Gun 8 | 2 1 . . . . 1 4 Ballistic Cannon . | . . . . . . . . Launcher 4 | . 1 1 . . . 2 . Special Weapon . | . . . . . . . . Impact Weapon . | . . . . . . . . Slashing Weapon . | . . . . . . . . Piercing Weapon . | . . . . . . . . Special Melee Weapon . | . . . . . . . . Unidentified Prototypes 6 | . . . 2 . . . 4 Parts Lost 28 | . 2 1 4 1 . 8 12 Power 2 | . 1 . . . . 1 . Propulsion 8 | . 1 . 1 1 . 1 4 Utility 7 | . . . . . . 2 5 Weapon 11 | . . 1 3 . . 4 3 Highest Loss Streak 8 | . 2 1 1 1 . 6 8 To Critical Strikes 1 | . . . . 1 . . . Average Slot Usage (%) 85 | . 82 83 84 81 82 71 90 Engine 9 | . 14 14 11 11 11 1 7 Leg 5 | . . . . . . . 11 Wheel 14 | . 25 28 23 26 22 26 1 Hover 5 | . . . . . . . 13 Device 6 | . . . . . 5 1 14 Storage 12 | . 14 14 18 11 11 11 9 Protection 8 | . . . 10 11 11 10 9 Energy Gun 16 | . . 5 20 22 22 2 18 Ballistic Gun 5 | . 25 18 . . . 8 4 Launcher 1 | . 2 3 . . . 9 . Naked Turns . | . . . . . . . . Heaviest Build 46 | 10 12 14 45 40 41 36 46 Greatest Support 54 | 26 32 32 36 36 26 48 54 Greatest Overweight (x) 7 | 3 . . 2 1 1 2 7 Average Overweight (x) . | . . . . 1 1 . . Largest Inventory Capacity 15 | 8 8 8 15 15 15 15 15 Average Capacity 11 | 7 8 8 12 15 15 15 11 Most Carried 15 | . 6 8 13 13 13 13 15 Average Carried 9 | . 4 6 8 13 13 9 8 Final Capacity 15 | 8 8 8 15 15 15 15 10 Final Carried 13 | . 6 8 13 13 13 9 10 Class Distribution -------------------- 55% | Mutant 15% | Skirmisher 13% | Scavenger-Mutant 12% | Scavenger-Skirmisher Dominant Class ---------------- Mutant | -10/Materials Mutant | -10/Mines Mutant | -9/Materials Mutant | -9/Mines Mutant | -9/Exiles Mutant | -8/Mines Skirmisher | -8/Materials Resources | -11 -10 -10 -9 -9 -9 -8 -8 ----------- Run | Scr Mat Min Mat Min Exi Min Mat Matter Collected 1631 | 194 138 156 305 2 . 61 775 Remotely . | . . . . . . . . Salvage Created 4226 | . 288 93 1019 357 . 209 2260 Parts 237 | . 16 7 54 26 . 22 112 Haulers Intercepted 10 | . . . 5 . . . 5 Recyclers Shooed 3 | . . . . . . . 3 Parts Field Recycled . | . . . . . . . . Retrieved Matter . | . . . . . . . . Parts Self-Destructed . | . . . . . . . . Prevented . | . . . . . . . . Kills | -11 -10 -10 -9 -9 -9 -8 -8 ------- Run | Scr Mat Min Mat Min Exi Min Mat Combat Hostiles Destroyed 87 | . 6 6 19 11 . 10 35 Guns 64 | . 4 2 13 11 . 1 33 AOE 22 | . 2 4 5 . . 9 2 Classes Destroyed 12 | . 4 1 4 1 . . 2 Worker 3 | . . . 1 1 . . 1 Builder 1 | . . . 1 . . . . Tunneler 1 | . . . . 1 . . . Hauler 10 | . . . 5 . . . 5 Recycler 3 | . 1 . . . . . 2 Watcher 5 | . 1 . 1 . . . 3 Swarmer 24 | . 3 . 7 6 . 8 . Grunt 46 | . 3 2 9 5 . 4 23 Brawler 2 | . . . . . . . 2 Sentry 11 | . . . 3 . . . 8 Hunter 2 | . . . . . . . 2 Assembled 4 | . . 4 . . . . . Best Kill Streak 7 | . 4 4 7 5 . 4 7 Combat Bots Only 6 | . 3 4 6 3 . 4 4 Max Kills in Single Turn 4 | . 2 2 2 2 . 4 3 Gunslinging 1 | . . . . 1 . . . Exploded 4 | . 2 2 2 . . 4 2 Melee . | . . . . . . . . Uniques/NPCs Destroyed . | . . . . . . . . Combat | -11 -10 -10 -9 -9 -9 -8 -8 -------- Run | Scr Mat Min Mat Min Exi Min Mat Damage Taken 4377 | . 273 274 586 358 . 513 2373 Core 1082 | . 58 160 68 103 . 141 552 Absorbed by Shields . | . . . . . . . . Core Remaining (%) 44 | 100 . 12 . . . 22 . Volleys Fired 268 | . 27 19 52 20 . 15 135 Largest 3 | . 2 2 2 2 . 2 3 Hottest 183 | . 50 65 90 85 . 85 183 Shots Fired 559 | . 54 29 85 40 . 20 331 Gun 542 | . 52 22 85 40 . 12 331 Cannon . | . . . . . . . . Launcher 17 | . 2 7 . . . 8 . Special . | . . . . . . . . Kinetic 165 | . 52 21 . . . 1 91 Thermal 228 | . . 1 9 . . . 218 Explosive 17 | . 2 7 . . . 8 . Electromagnetic 149 | . . . 76 40 . 11 22 Robot Hit Streak 13 | . 9 5 13 5 . 3 13 Robot Miss Streak 8 | . 5 2 3 5 . 1 8 Penetration Max 1 | . . . . . . . 1 Secondary Targets 9 | . 1 1 1 4 . . 2 Max Gunslinging Chain 1 | . 1 1 1 1 . . 1 Shots Hit Robots 357 | . 30 19 73 22 . 13 200 Core Hits 201 | . 22 14 42 18 . 16 89 Critical Kills . | . . . . . . . . Critical Parts Destroyed 1 | . . . . . . . 1 Critical Strikes 11 | . . . . . . . 11 Burn 10 | . . . . . . . 10 Destroy 1 | . . . . . . . 1 Melee Attacks . | . . . . . . . . Impact . | . . . . . . . . Slashing . | . . . . . . . . Piercing . | . . . . . . . . Sneak Attacks . | . . . . . . . . Combat Hostiles . | . . . . . . . . Follow-up Attacks . | . . . . . . . . Damage Inflicted 7665 | . 339 430 1564 315 . 725 4292 Guns 6069 | . 244 113 1170 315 . 117 4110 Cannons . | . . . . . . . . Explosions 1541 | . 95 317 394 . . 602 133 Melee . | . . . . . . . . Ramming 55 | . . . . . . 6 49 Kinetic 1493 | . 244 113 . . . . 1136 Thermal 3592 | . . . 522 . . 138 2932 Explosive 876 | . 95 317 . . . 464 . Electromagnetic 1649 | . . . 1042 315 . 117 175 Impact . | . . . . . . . . Slashing . | . . . . . . . . Piercing . | . . . . . . . . Highest Corruption 2 | . . . 1 1 1 1 2 Average Corruption 1 | . . . 1 1 1 1 2 Corruption Purged . | . . . . . . . . Corruption Blocked . | . . . . . . . . Effects 25 | . . . . 5 1 3 16 Message Errors 8 | . . . . 3 1 2 2 Matter Fused 6 | . . . . 1 . . 5 Heat Flow Errors 2 | . . . . . . . 2 Energy Discharges 3 | . . . . . . . 3 Data Loss (minor) 2 | . . . . . . 1 1 Misfires 1 | . . . . 1 . . . Weapon Failures 3 | . . . . . . . 3 Overload Shots . | . . . . . . . . Overflow Damage 27 | . . 6 . . . 21 . Projectiles . | . . . . . . . . Explosions 27 | . . 6 . . . 21 . Melee . | . . . . . . . . Knockbacks . | . . . . . . . . Impact . | . . . . . . . . Kinetic . | . . . . . . . . Secondary . | . . . . . . . . Self-Inflicted Damage 341 | . . 64 60 . . 149 68 Shots 12 | . . 3 3 . . 5 1 Rammed 4 | . . . . . . 1 3 Targets Rammed 4 | . . . . . . 1 3 Kicked . | . . . . . . . . Crushed . | . . . . . . . . Highest Temperature 516 | . 33 24 150 189 . 243 516 Average Temperature 100 | . 13 10 56 56 . 116 135 Received Heat Transfer 1575 | . 183 81 222 72 . 216 801 Effects 11 | . . . . . . . 11 Shutdowns 4 | . . . . . . . 4 Energy Bleed 4 | . . . . . . . 4 Interference 2 | . . . . . . . 2 Damage (core) 1 | . . . . . . . 1 Siege Activations . | . . . . . . . . Robots Corrupted 1 | . . . 1 . . . . Combat Hostiles 1 | . . . 1 . . . . Parts Fried 7 | . . . 6 1 . . . Impact Corruptions 1 | . . . . . . . 1 Robots Melted . | . . . . . . . . Combat Hostiles . | . . . . . . . . Parts Melted 11 | . . . 2 . . . 9 Heat Transferred 7042 | . . . 896 . . 150 5996 Parts Sabotaged . | . . . . . . . . Parts Stolen . | . . . . . . . . Parts Stripped . | . . . . . . . . Power Chain Reactions 8 | . . . 6 . . 1 1 Missiles Intercepted . | . . . . . . . . Alert | -11 -10 -10 -9 -9 -9 -8 -8 ------- Run | Scr Mat Min Mat Min Exi Min Mat Peak Influence 780 | . 178 169 484 390 . 288 780 Initial 160 | . . 69 65 160 . . 111 Average 282 | . 78 100 286 251 . 234 348 Maximum Alert Level 3 | . . . 2 1 . 1 3 Low Security (%) 39 | 100 100 100 32 24 . 28 31 Level 1 40 | . . . 55 75 . 71 31 Level 2 15 | . . . 12 . . . 26 Level 3 5 | . . . . . . . 11 Level 4 . | . . . . . . . . Level 5 . | . . . . . . . . High Security . | . . . . . . . . Max Security . | . . . . . . . . Squads Dispatched 13 | . . . 4 . . . 9 Investigation 6 | . . . 2 . . . 4 Extermination . | . . . . . . . . Reinforcement 7 | . . . 2 . . . 5 Assault . | . . . . . . . . Garrison . | . . . . . . . . Intercept . | . . . . . . . . Searches Triggered . | . . . . . . . . Construction Impeded . | . . . . . . . . Haulers Reinforced . | . . . . . . . . Active Scanning Responses . | . . . . . . . . Cargo Convoy Interrupts . | . . . . . . . . Stealth | -11 -10 -10 -9 -9 -9 -8 -8 --------- Run | Scr Mat Min Mat Min Exi Min Mat Distress Signals 7 | . 2 . 1 . . . 4 Communications Jammed . | . . . . . . . . Distress Signals . | . . . . . . . . Times Spotted 115 | . 8 8 25 13 . 7 54 Peak Tracking Total 8 | . 3 8 6 4 . 4 6 Tactical Retreats 4 | . . . 2 . . . 2 Traps | -11 -10 -10 -9 -9 -9 -8 -8 ------- Run | Scr Mat Min Mat Min Exi Min Mat Traps Triggered 3 | . . . 1 . . . 2 Indirectly . | . . . . . . . . Trap Hack Attempts . | . . . . . . . . Triggered . | . . . . . . . . Disarmed . | . . . . . . . . Reprogrammed . | . . . . . . . . Reused 3 | . . . . . . . 3 Traps Reconfigurated 8 | . . . . . . . 8 Traps Extracted . | . . . . . . . . Installed . | . . . . . . . . Triggered 3 | . . . . . . . 3 Machines | -11 -10 -10 -9 -9 -9 -8 -8 ---------- Run | Scr Mat Min Mat Min Exi Min Mat Machines Disabled 7 | . . . 2 . . 1 4 Max in Single Turn 1 | . . . 1 . . 1 1 Machines Sabotaged . | . . . . . . . . Garrisons Compromised . | . . . . . . . . Overloaded Fab Kills . | . . . . . . . . Hacking | -11 -10 -10 -9 -9 -9 -8 -8 --------- Run | Scr Mat Min Mat Min Exi Min Mat Machines Accessed 10 | . . . 5 . 1 . 4 Terminals 9 | . . . 5 . . . 4 Fabricators . | . . . . . . . . Repair Stations . | . . . . . . . . Recycling Units . | . . . . . . . . Scanalyzers . | . . . . . . . . Garrison Access . | . . . . . . . . Total Hacks 30 | . . . 15 . 1 . 14 Successful 15 | . . . 7 . 1 . 7 Failed 14 | . . . 7 . . . 7 Catastrophic . | . . . . . . . . Database Lockouts 1 | . . . 1 . . . . Manual 32 | . . . 21 . 1 . 10 Terminals 29 | . . . 15 . . . 14 Fabricators . | . . . . . . . . Repair Stations . | . . . . . . . . Recycling Units . | . . . . . . . . Scanalyzers . | . . . . . . . . Garrison Access . | . . . . . . . . Terminal Hacks 7 | . . . 3 . 1 . 3 Robot Analysis 4 | . . . 3 . . . 1 Terminal Index 1 | . . . . . . . 1 Locate Traps 1 | . . . . . . . 1 EX-Prototype ID Bank 1 | . . . . . 1 . . Fabricator Hacks . | . . . . . . . . Repair Station Hacks . | . . . . . . . . Recycling Unit Hacks . | . . . . . . . . Scanalyzer . | . . . . . . . . Garrison Access Hacks . | . . . . . . . . Unauthorized Hacks 8 | . . . 4 . . . 4 Terminals 8 | . . . 4 . . . 4 Botnet 8 | . . . 4 . . . 4 Fabricators . | . . . . . . . . Repair Stations . | . . . . . . . . Recycling Units . | . . . . . . . . Scanalyzers . | . . . . . . . . Garrison Access . | . . . . . . . . Data Cores Recovered . | . . . . . . . . Used . | . . . . . . . . Hacking Detections 9 | . . . 5 . . . 4 Full Trace Events 5 | . . . 3 . . . 2 Feedback Events . | . . . . . . . . Feedback Blocked . | . . . . . . . . Robot Schematics Acquired . | . . . . . . . . Robots Built . | . . . . . . . . Authchips . | . . . . . . . . Time . | . . . . . . . . Total Robot Build Rating . | . . . . . . . . Part Schematics Acquired . | . . . . . . . . Parts Built . | . . . . . . . . Authchips . | . . . . . . . . Time . | . . . . . . . . Total Part Build Rating . | . . . . . . . . Parts Repaired . | . . . . . . . . Time . | . . . . . . . . Parts Recycled . | . . . . . . . . Recycled Matter . | . . . . . . . . Retrieved Matter . | . . . . . . . . Retrieved Components . | . . . . . . . . Parts Scanalyzed . | . . . . . . . . Part Schematics Acquired . | . . . . . . . . Parts Damaged . | . . . . . . . . Bothacking | -11 -10 -10 -9 -9 -9 -8 -8 ------------ Run | Scr Mat Min Mat Min Exi Min Mat Used RIF Installer . | . . . . . . . . Robots Hacked . | . . . . . . . . Non-combat . | . . . . . . . . Combat . | . . . . . . . . Robot Hacks Applied . | . . . . . . . . Relay Couplers Released . | . . . . . . . . Fabnet Peak Effective % . | . . . . . . . . Robots Rewired . | . . . . . . . . Allies Hacked . | . . . . . . . . Hacks Repelled . | . . . . . . . . Allies | -11 -10 -10 -9 -9 -9 -8 -8 -------- Run | Scr Mat Min Mat Min Exi Min Mat Total Allies 5 | . . 2 . 3 . . . Largest Group 3 | . . 2 2 3 2 2 . Highest-Rated Group 43 | . . 43 43 40 24 24 . Highest-Rated Ally 31 | . . 31 31 16 16 16 . Total Orders . | . . . . . . . . Ally Attacks 30 | . . 2 7 5 . 16 . Total Damage 358 | . . 41 106 59 . 152 . Kills 5 | . . 2 1 1 . 1 . Allies Corrupted . | . . . . . . . . Allies Melted . | . . . . . . . . Intel | -11 -10 -10 -9 -9 -9 -8 -8 ------- Run | Scr Mat Min Mat Min Exi Min Mat Robot Analysis Total 4 | . . . 3 . . . 1 Derelict Logs Recovered 2 | . . 1 . 1 . . . Drone Launches . | . . . . . . . . Drone Recoveries . | . . . . . . . . Exploration | -11 -10 -10 -9 -9 -9 -8 -8 ------------- Run | Scr Mat Min Mat Min Exi Min Mat Turns Passed 4806 | 45 250 272 1045 529 255 280 2130 Spaces Moved 3463 | 44 155 219 763 428 227 225 1402 Core 21 | 15 . . . . . . 6 Treads . | . . . . . . . . Legs 371 | . . . . . . . 371 Wheels 2097 | 29 155 219 763 428 227 225 51 Hover 974 | . . . . . . . 974 Flight . | . . . . . . . . Fastest Speed 50 | 50 90 100 100 101 105 100 52 Average Speed 94 | 82 96 100 107 103 105 102 79 Slowest Speed 400 | 200 100 100 130 105 105 130 400 Overloaded Moves . | . . . . . . . . Propulsion Burnouts . | . . . . . . . . Robots Hopped . | . . . . . . . . Cave-ins Triggered . | . . . . . . . . Exploration Rate (%) 56 | 4 30 61 76 93 60 50 80 Regions Visited 7 Branch Regions 4 Pre-discovered Areas 1 | . . . . 1 . . . Known Exits Taken . | . . . . . . . . Unknown Exits Taken 7 | 1 1 1 1 1 1 1 . Scrap Searched 2 | . . 1 . 1 . . . Spaces Dug . | . . . . . . . . Terrain Destroyed 119 | . 11 28 20 . . 57 3 Melee . | . . . . . . . . Projectile . | . . . . . . . . AOE 119 | . 11 28 20 . . 57 3 Terrain Rammed . | . . . . . . . . Walls Destroyed . | . . . . . . . . Machines Disabled . | . . . . . . . . Actions | -11 -10 -10 -9 -9 -9 -8 -8 --------- Run | Scr Mat Min Mat Min Exi Min Mat Total 4535 | 49 209 246 898 475 243 253 2162 Wait 633 | . 17 3 52 28 16 . 517 Move 3456 | 43 154 218 762 427 226 224 1402 Hop . | . . . . . . . . Pick Up 27 | . 7 1 7 . . 1 11 Fast Attach 44 | 6 1 1 8 . 1 2 25 Attach 16 | . 1 . 3 . . 7 5 Detach 12 | . . . 2 . . 2 8 Swap 33 | . 2 3 5 . . 1 22 Drop 42 | . . 1 7 . . . 34 Fire 268 | . 27 19 52 20 . 15 135 Melee . | . . . . . . . . Ram 4 | . . . . . . 1 3 Kick . | . . . . . . . . Crush . | . . . . . . . . Escape Stasis . | . . . . . . . . Rewire . | . . . . . . . . Trap . | . . . . . . . . Miscellaneous . | . . . . . . . . Route ------- -11/Scrapyard -10/Materials -10/Mines -9/Materials (discovered 4 exits: *Mat x2 / [*Min x2]) -9/Mines (discovered 3 exits: *Mat / *Exi / [*Zio]) -9/Exiles -8/Mines (discovered 2 exits: *Mat x2) -8/Materials (discovered 1 exit: [*Fac]) History --------- Turn | Location | Event 5 | -11/Scrapyard | Discovered new exit (range 15) 46 | -11/Scrapyard | Entered Materials 272 | -10/Materials | Discovered new exit (range 7) 296 | -10/Materials | Entered Mines 302 | -10/Mines | Build established: Mutant 444 | -10/Mines | Core integrity fell below 50% 478 | -10/Mines | Assembled infested the area 509 | -10/Mines | Core integrity fell below 20% 533 | -10/Mines | Discovered new exit (range 11) 551 | -10/Mines | Learned Materials interactive machine intel 568 | -10/Mines | Entered Materials 568 | -9/Materials | Accompanied by 2 allies 568 | -9/Materials | Evolved 2 slots: Propulsion x1, Utility x1 569 | -9/Materials | Loaded intel: 18 interactive machine locations 573 | -9/Materials | Led the pair of lost Derelicts to an unsafe place 769 | -9/Materials | Discovered new exit (range 8) 1049 | -9/Materials | Discovered new exit (range 16) 1182 | -9/Materials | Discovered new exit (range 10) 1540 | -9/Materials | Discovered new exit (range 16) 1541 | -9/Materials | Central database locked down 1613 | -9/Materials | Entered Mines 1614 | -9/Mines | A Derelict revealed a hidden shortcut to a safe place 1627 | -9/Mines | Met a Derelict bent on vengeance 1851 | -9/Mines | Discovered new exit (range 3) 1966 | -9/Mines | Learned location of Storage (-7) 2003 | -9/Mines | Assisted by bots powering up and referring to "LRC-V3" 2138 | -9/Mines | Deemed a non-threat by the Exiles lab entrance 2138 | -9/Mines | Discovered new exit (range 5) 2142 | -9/Mines | Entered Exiles 2142 | -9/Exiles | Accompanied by 2 allies 2169 | -9/Exiles | Met 8R-AWN 2187 | -9/Exiles | Met EX-HEX 2215 | -9/Exiles | Met EX-BIN 2228 | -9/Exiles | Aligned with FarCom system 2229 | -9/Exiles | Given EX-Vault access code 2256 | -9/Exiles | Opened EX-Vault 2266 | -9/Exiles | Found Trap Reconfigurator 2290 | -9/Exiles | Warned to stay clear of 0b10 Research branches 2335 | -9/Exiles | Met EX-DEC 2372 | -9/Exiles | Discovered new exit (range 10) 2397 | -9/Exiles | Left Exiles lab with Trap Reconfigurator 2397 | -9/Exiles | Entered Mines 2397 | -8/Mines | Accompanied by 2 allies 2402 | -8/Mines | Core integrity fell below 50% 2444 | -8/Mines | Lost 6 parts (1n2u3w) 2583 | -8/Mines | Discovered new exit (range 10) 2667 | -8/Mines | Discovered new exit (range 11) 2677 | -8/Mines | Entered Materials 2677 | -8/Materials | Evolved 2 slots: Utility x1, Weapon x1 2832 | -8/Materials | Lost 8 parts (3n2u3w) 3125 | -8/Materials | Build established: Scavenger-Mutant 3644 | -8/Materials | Core integrity fell below 50% 4205 | -8/Materials | Build established: Scavenger-Skirmisher 4443 | -8/Materials | Discovered new exit (range 16) 4626 | -8/Materials | Build established: Skirmisher 4787 | -8/Materials | Core integrity fell below 20% 4807 | -8/Materials | Destroyed by H-61 Shepherd with Heavy Assault Cannon Last Messages --------------- 04764_ Slug penetrates G-47 Trooper. 04769_ Penetrated by Slug. 04771_ G-47 Trooper destroyed. 04778_ Acquired 7 matter. 04779_ Slug penetrates Wall. 04781_ R-06 Scavenger collects Trap Reconfigurator. 04783_ Imp. Carbon-fiber Leg destroyed. 04784_ Slug penetrates H-61 Shepherd. 04789_ R-06 Scavenger destroyed. 04790_ R-06 Scavenger collects Com. Wheel. 04795_ Slug penetrates H-61 Shepherd. 04796_ Penetrated by Slug. 04798_ Slug penetrates H-61 Shepherd. 04800_ R-06 Scavenger collects Imp. Heat Sink. 04801_ Destroyed Com. Wheel. 04803_ Power failure, Lgt. Deuterium Engine shutdown. 04804_ R-06 Scavenger collects Particle Gun. 04806_ Slug penetrates H-61 Shepherd. 04807_ O-16 Technician: "IFF HANDSHAKE FAILED. SECURING TERMINAL." 04807_ Penetrated by Slug. Map ----- +----------------------------------------------------+ | #??# + %"! """ #?????# | | #??# # ############### #[ """ #?????# | | #??#############?????????????# #[ #?????#### | | ##?????#######???????????????# ########????????? | | ####### | #???????????????# #???????????????? | | #???????????????# #???????????????? | | #????????######## #???????????????? | | #????????# # #???????????????? | | ###+### #????????# # #???????????????? | | ##### ## ########??# """ + #???????????????? | | ????# ## # [#??# """ # #???????????????? | | ????# ## # #??# """ # #???????????????? | | ????# ## + ""#??# # #???????????????? | | ????# ## # Y"#??##+##### #???????????????? | | ????# ] ## # ""#???# ##### ####????????????? | | ????# ## # #???# #????????????? | | ????# ## ########???# #####+##%#????????????? | | ????# ## #????####### # # #????????????? | | ????####### #????# + # #????????????? | | #######???# #????# ####### # #????????????? | | ||[[**#???# %#????# #?????# # #????????????? | | ||[[**#???# #????# #?????# # #????????????? | | #??## ##???#%#?##### # #????????????? | | #### ##### ###;;#;####### ##???????????? | | k r r *%= ????????? | | % % % @ %%![ H ????????? | | % % !%! = ???????? | | ########## ##########+######+######+###??????? | | ???????#####+#####??????o ??????????????????????? | | ???????# #??????T ??????????????????????? | | ???????# #?????? ??????????????????????? | | ???????# """ """ #?????? ??????????????????????? | | ???????# """ """ #????? ?????????????????????? | | ???????# """ """ #????? ] ?????????????????????? | | ???????# #?????#####?????????????????????? | | ???????# #???????????????????????????????? | | ???????# = #???????????????????????????????? | | ???????###########???????????????????????????????? | | ?????????????????????????????????????????????????? | | ?????????????????????????????????????????????????? | | ?????????????????????????????????????????????????? | | | | | | | | | | | | | | | | | | | +----------------------------------------------------+ Best States ------------- Heat Dissipation 59 Energy Generation 14 Energy Capacity 280 Matter Stores 300 Matter Capacity 300 Sight Range 16 Terrain Scan Density 10 Armor Coverage 375 Evasion (%) 55 Item Schematics ----------------- None Robot Schematics ------------------ None Fabricated ------------ Nothing Alien Tech Used ----------------- None Achievements -------------- None Challenges ------------ None Game ------ Seed QuantumGravityProjector Manual? 0 Play Time 01:12:43 Cumulative 163.9 hours Start 2022.05.16 @ 14:17:43 End 2022.05.16 @ 16:33:05 Sessions 3 Manual Loads 0 Difficulty Rogue Special Mode None Game No. 65 Rogue 58 Adventurer 0 Explorer 7 Win Type - Total 1 Types 0/0/1/0/0/0/0/0/0 Lore% 60 Gallery% 55 Achievement% 47 Wizard Run 0 Options --------- ASCII 0 Keyboard 0 Movement Mouse Keybinds 0 Fullscreen 1 Font 16/Cog Map View 76x50 Tactical HUD 1 Map Filters NONE Filters NONE Steam 1 RUN: 4a47d3d0-c966-4d50-8571-ea000a263696